Cogmind - Beta 15 @@@ ROGUE MODE // 2025.06.15 @ 19:09:55 Player: Singularius Result: Destroyed by as-44168 with Assembled Heavy Rifle Performance ------------- Evolutions (0) 0 Regions Visited (2) 400 Robots Destroyed (16) 80 Value Destroyed (418) 418 Prototype IDs (0) 0 Alien Tech Used (0) 0 Bonus (0) 0 TOTAL SCORE: 898 Bonus ------- None Cogmind --------- Core Integrity 0/250 Matter 288/300 Energy 100/100 System Corruption 3% Temperature Cool (0) Movement Treading (160) Location -10/Mines Parts ------- > --- POWER (1) -------- (None) > --- PROPULSION (2) --- Light Treads > --- UTILITY (2) ------ Medium Storage Unit > --- WEAPON (2) ------- (None) > --- INVENTORY (10) --- Light Ion Engine Light Treads Light Treads Light Treads Light Treads Improved Terrain Scanner Light Armor Plating Assault Rifle Mining Laser Peak State ------------ > --- POWER ------------ Light Nuclear Core > --- PROPULSION ------- Light Treads Light Treads > --- UTILITY ---------- Medium Storage Unit Sensor Array > --- WEAPON ----------- Particle Gun Light Assault Rifle > --- INVENTORY -------- Light Ion Engine Light Treads Light Treads Light Treads Light Treads Light Armor Plating Assault Rifle Assault Rifle Grenade Launcher Mining Laser [Rating: 11] Favorites ----------- Power Ion Engine Engine Ion Engine Power Core Light Nuclear Core Propulsion Light Treads Treads Light Treads Utility Small Storage Unit Device Sensor Array Storage Small Storage Unit Weapon Particle Gun Energy Gun Particle Gun Ballistic Gun Light Assault Rifle Launcher Grenade Launcher Special Weapon Mining Laser Build | -11 -10 -10 ------- Run | Yrd Mat Min Slots Evolved . | . . . Power . | . . . Propulsion . | . . . Utility . | . . . Weapon . | . . . Parts Attached 15 | 7 7 1 Power 2 | 1 1 . Engine 1 | 1 . . Core 1 | . 1 . Reactor . | . . . Propulsion 2 | 2 . . Treads 2 | 2 . . Leg . | . . . Wheel . | . . . Hover . | . . . Flight . | . . . Utility 4 | 2 2 . Device 2 | 1 1 . Storage 2 | 1 1 . Processor . | . . . Hackware . | . . . Protection . | . . . Artifact . | . . . Weapon 7 | 2 4 1 Energy Gun 2 | 1 1 . Energy Cannon . | . . . Ballistic Gun 3 | 1 2 . Ballistic Cannon . | . . . Launcher 1 | . . 1 Special Weapon 1 | . 1 . Impact Weapon . | . . . Slashing Weapon . | . . . Piercing Weapon . | . . . Special Melee Weapon . | . . . Unidentified Prototypes . | . . . Parts Lost 7 | . 1 6 Power 1 | . . 1 Propulsion 1 | . . 1 Utility 2 | . 1 1 Weapon 3 | . . 3 Highest Loss Streak 3 | . 1 3 To Critical Strikes . | . . . Average Backups 7 | 2 7 9 Power . | . 1 1 Propulsion 3 | 1 3 4 Utility . | . . 2 Weapon 2 | . 2 2 Tool/Special . | . . . Unused Backups 11 | . 3 8 Power 1 | . . 1 Propulsion 7 | . 3 4 Utility 2 | . . 2 Weapon 1 | . . 1 Tool/Special . | . . . Average Slot Usage (%) 95 | . 98 82 Engine 8 | . 11 . Core 4 | . 2 9 Treads 26 | . 28 23 Device 11 | . 12 9 Storage 14 | . 14 14 Energy Gun 13 | . 14 11 Ballistic Gun 13 | . 13 11 Peak Build Rating 11 | 7 11 11 Average Rating 8 | 5 8 8 On Entrance 6 | . 7 11 Naked Turns . | . . . Heaviest Build 21 | 14 21 21 Greatest Support 40 | 40 40 40 Greatest Overweight (x) 4 | . . 4 Average Overweight (x) . | . . . Largest Inventory Capacity 10 | 8 10 10 Average Capacity 8 | 7 8 10 Most Carried 10 | 4 10 10 Average Carried 7 | 2 7 9 Final Capacity 10 | 8 10 10 Final Carried 10 | 4 10 9 Class Distribution -------------------- 100% | Mutant Dominant Class ---------------- Mutant | -10/Materials Mutant | -10/Mines Resources | -11 -10 -10 ----------- Run | Yrd Mat Min Matter Collected 488 | 273 102 113 Remotely . | . . . Salvage Created 668 | 142 417 109 Parts 38 | 10 21 7 Haulers Intercepted 1 | . 1 . Recyclers Shooed 1 | 1 . . Parts Field Recycled . | . . . Retrieved Matter . | . . . Parts Self-Destructed . | . . . Prevented . | . . . Kills | -11 -10 -10 ------- Run | Yrd Mat Min Combat Hostiles Destroyed 19 | . 9 10 Guns 15 | . 9 6 AOE 4 | . . 4 Classes Destroyed 6 | 2 2 2 Tunneler 2 | 2 . . Hauler 1 | . 1 . Recycler 1 | 1 . . Swarmer 2 | . . 2 Grunt 10 | . 9 1 Assembled 7 | . . 7 Best Kill Streak 3 | 3 3 3 Combat Bots Only 3 | . 3 3 Max Kills in Single Turn 2 | 1 1 2 Gunslinging 1 | . . 1 Exploded 1 | . . 1 Melee . | . . . Uniques/NPCs Destroyed . | . . . Combat | -11 -10 -10 -------- Run | Yrd Mat Min Hostile Shots Fired 89 | . 47 42 Missed 28 | . 16 12 Hits 61 | . 31 30 Melee 7 | . . 7 Projectile 54 | . 31 23 Part Disruptions 4 | . . 4 Damage Taken 986 | . 390 596 Core 252 | . 105 147 Absorbed by Shields . | . . . Core Remaining (%) 100 | 100 . . Volleys Fired 69 | 3 36 30 Largest 2 | 2 2 2 Hottest 100 | 70 100 85 Shots Fired 122 | 6 68 48 Gun 115 | 6 67 42 Cannon . | . . . Launcher 6 | . . 6 Special 1 | . 1 . Kinetic 58 | 3 32 23 Thermal 58 | 3 36 19 Explosive 6 | . . 6 Electromagnetic . | . . . Robot Hit Streak 7 | 2 7 6 Robot Miss Streak 3 | 1 3 3 Penetration Max . | . . . Secondary Targets 3 | . 2 1 Max Gunslinging Chain 1 | . 1 1 Shots Hit Robots 72 | 3 43 26 Core Hits 41 | 4 21 16 Critical Kills . | . . . Critical Parts Destroyed . | . . . Critical Strikes 2 | 1 1 . Burn 2 | 1 1 . Melee Attacks . | . . . Impact . | . . . Slashing . | . . . Piercing . | . . . Sneak Attacks . | . . . Combat Hostiles . | . . . Follow-up Attacks . | . . . Damage Inflicted 1056 | 49 502 505 Guns 830 | 49 502 279 Cannons . | . . . Explosions 226 | . . 226 Melee . | . . . Ramming . | . . . Kinetic 340 | 10 167 163 Thermal 490 | 39 335 116 Explosive 226 | . . 226 Electromagnetic . | . . . Impact . | . . . Slashing . | . . . Piercing . | . . . Highest Corruption 3 | . . 3 Average Corruption 3 | . . 3 Corruption Purged . | . . . Corruption Blocked . | . . . Effects 3 | . . 3 Matter Fused 1 | . . 1 Heat Flow Errors 1 | . . 1 Parts Rejected 1 | . . 1 Overload Shots . | . . . Overflow Damage 15 | . . 15 Projectiles . | . . . Explosions 15 | . . 15 Melee . | . . . Knockbacks . | . . . Impact . | . . . Kinetic . | . . . Secondary . | . . . Self-Inflicted Damage 138 | . . 138 Shots 4 | . . 4 Rammed . | . . . Targets Rammed . | . . . Kicked . | . . . Crushed . | . . . Highest Temperature 312 | 40 312 236 Average Temperature 98 | 19 101 102 Received Heat Transfer 396 | . 201 195 Effects 4 | . 1 3 Interference 4 | . 1 3 Siege Activations . | . . . Martial Activations . | . . . Shielding Activations . | . . . Robots Disrupted . | . . . Combat Hostiles . | . . . Robots Corrupted . | . . . Combat Hostiles . | . . . Parts Fried . | . . . Impact Corruptions . | . . . Robots Melted . | . . . Combat Hostiles . | . . . Parts Melted 3 | 1 2 . Heat Transferred 1369 | 185 888 296 Parts Sabotaged . | . . . Parts Stolen . | . . . Parts Stripped . | . . . Power Chain Reactions . | . . . Alert | -11 -10 -10 ------- Run | Yrd Mat Min Maximum Alert Level . | . . . Low Security (%) 100 | 100 100 100 Level 1 . | . . . Level 2 . | . . . Level 3 . | . . . Level 4 . | . . . Level 5 . | . . . High Security . | . . . Max Security . | . . . Peak Influence 95 | 15 95 85 Initial 19 | . . 19 Average 29 | 2 33 27 Influence Increases 476 | 15 306 155 Destroy 0b10 Robot/C 240 | . 180 60 Destroy 0b10 Robot/NC 20 | 15 5 . Destroy Leader 62 | . 52 10 Successful Hack 39 | . 39 . Disable Machine 15 | . 15 . Destroy Structure 40 | . . 40 Lose Combat Pursuer 60 | . 15 45 Influence Decreases 472 | 15 254 203 Entered New Map 33 | . . 33 Time Decay 386 | 15 244 127 Lost Part 53 | . 10 43 Squads Dispatched 3 | . 3 . Investigation 1 | . 1 . Extermination . | . . . Reinforcement 2 | . 2 . Assault . | . . . Garrison . | . . . Intercept . | . . . Searches Triggered . | . . . Construction Impeded . | . . . Haulers Reinforced . | . . . Active Scanning Responses . | . . . Cargo Convoy Interrupts . | . . . Stealth | -11 -10 -10 --------- Run | Yrd Mat Min Distress Signals 1 | . 1 . Communications Jammed . | . . . Distress Signals . | . . . Times Spotted 32 | . 16 16 Peak Tracking Total 5 | . 5 5 Tactical Retreats 6 | . 1 5 Traps | -11 -10 -10 ------- Run | Yrd Mat Min Traps Triggered 2 | . 2 . Indirectly . | . . . Trap Hack Attempts . | . . . Triggered . | . . . Disarmed . | . . . Reprogrammed . | . . . Reused . | . . . Traps Extracted . | . . . Installed . | . . . Triggered . | . . . Machines | -11 -10 -10 ---------- Run | Yrd Mat Min Machines Disabled 2 | . 2 . Max in Single Turn 1 | . 1 . Machines Repaired . | . . . Machines Dismantled . | . . . Machines Sabotaged . | . . . Overloaded Fab Kills . | . . . Hacking | -11 -10 -10 --------- Run | Yrd Mat Min Machines Accessed 4 | . 4 . Terminals 4 | . 4 . Fabricators . | . . . Repair Stations . | . . . Recycling Units . | . . . Scanalyzers . | . . . Garrison Access . | . . . Total Hacks 12 | . 12 . Successful 6 | . 6 . Failed 6 | . 6 . Catastrophic 1 | . 1 . Database Lockouts . | . . . Manual 7 | . 7 . Terminals 12 | . 12 . Fabricators . | . . . Repair Stations . | . . . Recycling Units . | . . . Scanalyzers . | . . . Garrison Access . | . . . Terminal Hacks 3 | . 3 . Terminal Index 1 | . 1 . Patrol Status 1 | . 1 . Registered Components 1 | . 1 . Fabricator Hacks . | . . . Repair Station Hacks . | . . . Recycling Unit Hacks . | . . . Scanalyzer . | . . . Garrison Access Hacks . | . . . Unauthorized Hacks 3 | . 3 . Terminals 3 | . 3 . Botnet 3 | . 3 . Fabricators . | . . . Repair Stations . | . . . Recycling Units . | . . . Scanalyzers . | . . . Garrison Access . | . . . Data Cores Recovered . | . . . Used . | . . . Hacking Detections 3 | . 3 . Full Trace Events . | . . . Feedback Events . | . . . Feedback Blocked . | . . . Robot Schematics Acquired . | . . . Robots Built . | . . . Authchips . | . . . Time . | . . . Total Robot Build Rating . | . . . Part Schematics Acquired . | . . . Parts Built . | . . . Authchips . | . . . Time . | . . . Total Part Build Rating . | . . . Parts Repaired . | . . . Time . | . . . Parts Recycled . | . . . Recycled Matter . | . . . Retrieved Matter . | . . . Retrieved Components . | . . . Parts Scanalyzed . | . . . Part Schematics Acquired . | . . . Parts Damaged . | . . . Bothacking | -11 -10 -10 ------------ Run | Yrd Mat Min Used RIF Installer . | . . . Robots Hacked . | . . . Non-combat . | . . . Combat . | . . . Robot Hacks Applied . | . . . Relay Couplers Released . | . . . Fabnet Peak Effective % . | . . . Robots Rewired . | . . . Allies Hacked . | . . . Hacks Repelled . | . . . Allies | -11 -10 -10 -------- Run | Yrd Mat Min Total Allies . | . . . Largest Group . | . . . Highest-Rated Group . | . . . Highest-Rated Ally . | . . . Total Orders . | . . . Ally Attacks . | . . . Total Damage . | . . . Kills . | . . . Allies Corrupted . | . . . Allies Melted . | . . . Intel | -11 -10 -10 ------- Run | Yrd Mat Min Active Infowar (turns) 1264 | 37 1011 216 Sensors 734 | . 518 216 Seismic 530 | 37 493 . Robot Analysis Total . | . . . Derelict Logs Recovered . | . . . Drone Launches . | . . . Drone Recoveries . | . . . Exploration | -11 -10 -10 ------------- Run | Yrd Mat Min Turns Passed 1550 | 116 1126 308 Spaces Moved 677 | 49 497 131 Core 6 | 1 . 5 Treads 671 | 48 497 126 Legs . | . . . Wheels . | . . . Hover . | . . . Flight . | . . . Fastest Speed 50 | 50 160 160 Average Speed 160 | 157 160 163 Slowest Speed 250 | 160 160 250 Overloaded Moves . | . . . Propulsion Burnouts . | . . . Robots Hopped . | . . . Potential Cave-ins . | . . . Cave-ins Triggered . | . . . Exploration Rate (%) 25 | 3 52 20 Regions Visited 2 Branch Regions 1 Pre-discovered Areas . | . . . Known Exits Taken . | . . . Unknown Exits Taken 2 | 1 1 . Scrap Searched . | . . . Spaces Dug . | . . . Terrain Destroyed 64 | . . 64 Melee . | . . . Projectile . | . . . AOE 64 | . . 64 Terrain Rammed . | . . . Walls Destroyed . | . . . Machines Disabled . | . . . Actions | -11 -10 -10 --------- Run | Yrd Mat Min Total 1021 | 79 766 176 Wait 238 | 17 208 13 Move 675 | 48 496 131 Hop . | . . . Pick Up 15 | 4 11 . Fast Attach 10 | 7 2 1 Attach 2 | . 1 1 Detach . | . . . Swap 4 | . 4 . Drop 8 | . 8 . Fire 69 | 3 36 30 Melee . | . . . Ram . | . . . Kick . | . . . Crush . | . . . Escape Stasis . | . . . Rewire . | . . . Trap . | . . . Miscellaneous . | . . . Route ------- -11/Scrapyard -10/Materials (discovered 4 exits: [*Mat x2] / [*Min] / [*Sub]) -10/Mines History --------- Turn | Location | Event 13 | -11/Scrapyard | Discovered new exit (range 15) 117 | -11/Scrapyard | Entered Materials 130 | -10/Materials | Discovered new exit (range 16) 228 | -10/Materials | Discovered new exit (range 8) 312 | -10/Materials | Build established: Mutant 767 | -10/Materials | Discovered new exit (range 9) 976 | -10/Materials | Discovered new exit (range 16) 1243 | -10/Materials | Entered Mines 1349 | -10/Mines | Assembled infested the area 1354 | -10/Mines | Core integrity fell below 50% 1490 | -10/Mines | Lost 3 parts (1p1n1u) 1548 | -10/Mines | Core integrity fell below 20% 1551 | -10/Mines | Destroyed by as-44168 with Assembled Heavy Rifle Last Messages --------------- 01494_ Acquired Lgt. Treads. 01496_ Particle Gun destroyed. 01496_ Assault Rifle destroyed. 01498_ Destroyed Asb. F-torch. 01498_ as-40551 destroyed. 01501_ as-82523 destroyed. 01508_ Acquired 1 matter. 01511_ System corrupted: Heat flow error (+109). 01518_ Acquired 6 matter. 01522_ Acquired 18 matter. 01523_ R-06 Scavenger destroyed. 01524_ Acquired 19 matter. 01527_ Acquired 6 matter. 01542_ Acquired 10 matter. 01545_ as-16924 destroyed. 01547_ as-52199 destroyed. 01547_ Grenade Launcher destroyed. 01547_ Destroyed Grenade Launcher. 01548_ U-05 Engineer destroyed. 01549_ Acquired 3 matter. Map ----- +----------------------------------------------------+ | ?????????????????????????????????????????????????? | | ?????????????????????????????????????????????????? | | ?????????????????????????????????????????????????? | | ?????????????????????????????????????????????????? | | ?????????????????????????????????????????????????? | | ?????????????????????????????????????????????????? | | ????????????????????????? ? ????????????????????? | | ????????????????????????? ????????????????????? | | ????????????????????????? ?????????????????????? | | ????????????????????????? ?????????????????????? | | ????????????????????????? ?????????????????????? | | ????????????????????????? =%?????????????????????? | | ?????????#??????????????# ??????????????????????? | | ???##??? ??????????????? ! ??????????????????????? | | ?## ### ????????????????$*=??????????????????????? | | ## ?????????????????#%#??????????????????????? | | # #??????????????????#!#??????????????????????? | | # #???????????????????#!#??????????????????????? | | #?????????############*#??????????????????????? | | ##??####### # %##?????????????????????? | | ##?# = #?????????????????????? | | ### ##### ## ##?????????????????????? | | #???############ ##?????????????????????? | | # ######????????????## ##????????????????????? | | #####????????????????## ##???????????????????? | | ?????????????????????# @ ##??????????????????? | | ??????????????####???# #??????????????????? | | ?????????????## ##??# ##??????????????????? | | ???????????### ####% #???????????????????? | | ??????????## !a=* #???????????????????? | | ??????##### ####== #???????????????????? | | ??????# ##??# # ##???????????????????? | | ??????# ###???### ####??????###???????????? | | ??????# #######???????# ######???# ##??????????? | | ??????#???????????????## ## #### ##?????????? | | ?????????????????????## ## #####?????? | | ?????????????????????# ##????? | | ?????????????????????# #????? | | ?????????????????????# ? | | ?????????????????????# ############# ? | | ?????????????????????# ##?????????????????????? | | ????????????????????##%= #??????????????????????? | | ????????????????????# ##?????????????????????? | | ????????????????????# ##????????????????????? | | ????????????????????## #????????????????????? | | ?????????????????????## #????????????????????? | | ??????????????????????## #????????????????????? | | ???????????????????????## #????????????????????? | | ????????????????????????# #????????????????????? | | ????????????????????????# #????????????????????? | +----------------------------------------------------+ Best States ------------- Heat Dissipation 25 Energy Generation 14 Energy Capacity 250 Matter Stores 300 Matter Capacity 300 Sight Range 16 Robot Scan Range 14 Terrain Scan Density 10 Evasion (%) 40 Recoil Reduction 2 Item Schematics ----------------- None Robot Schematics ------------------ None Fabricated ------------ Nothing Repaired ---------- Nothing Alien Tech Used ----------------- None Achievements -------------- True Hacker Challenges ------------ None Game ------ Seed NeutronSmallKit Manual? 0 Play Time 00:19:30 Cumulative 73.4 hours Start 2025.06.15 @ 18:52:11 End 2025.06.15 @ 19:09:55 Sessions 1 Manual Loads 0 Difficulty Rogue Special Mode None Game No. 52 Rogue 52 Adventurer 0 Explorer 0 Win Type - Total 0 Types 0/0/0/0/0/0/0/0/0/0 Lore% 25 Gallery% 35 Achievement% 30 Wizard Run 0 Options --------- Layout 1 ASCII 0 Keyboard 0 Movement Numpad Keybinds 0 Fullscreen 1 Font 24/Smallcaps Map View 50x35 Zoom Use 0% Tactical HUD 1 Map Filters NONE Filters NONE Steam 1 RUN: 65f7b6f2-bf50-4e42-b9d6-88cec03ad6bb